fUSD/lending_fUSD_20251003
["ID","MTS","AMOUNT","RATE_DAILY","PERIOD"]
[388876442,1759456235292,-153.42232232,0.00021797,2]
[388876443,1759456235302,-431.43695925,0.00021799,2]
[388876444,1759456235311,-800.0,0.000218,7]
[388876445,1759456235321,-175870.50390062,0.000218,2]
[388876446,1759456235331,-302.3152,0.000218,2]
[388876447,1759456235340,-5000.0,0.000218,2]
[388876448,1759456235350,-867.03092972,0.000218,2]
[388876449,1759456235360,-365.04938927,0.000218,2]
[388876450,1759456235369,-1273.82,0.000218,7]
[388876451,1759456235379,-656.16796432,0.000218,2]
[388876452,1759456235389,-162.2153932,0.00021808,2]
[388876453,1759456235398,-1007.0,0.00021816,2]
[388876454,1759456235408,-334.5472959,0.00021817,2]
[388876455,1759456235418,-187.4694251,0.00021817,2]
[388876456,1759456235428,-274.0,0.00021845,2]
[388876457,1759456235439,-3601.87653294,0.00021858,2]
[388876458,1759456235450,-698.21255322,0.00021865,2]
[388876459,1759456235460,-413.01694084,0.00021873,2]
[388876460,1759456235469,-500.0,0.00021873,2]
[388876461,1759456235479,-500.0,0.00021873,2]
[388876462,1759456235489,-200.0,0.00021873,2]
[388876463,1759456235498,-446.38,0.00021876,2]
[388876464,1759456235508,-150.9,0.0002189,2]
[388876465,1759456235518,-150.9,0.0002189,2]
[388876466,1759456235527,-150.9,0.0002189,2]
[388876467,1759456235537,-150.9,0.0002189,2]
[388876468,1759456235546,-300.0,0.00021899,2]
[388876469,1759456235555,-171.45286408,0.00021899,2]
[388876470,1759456235565,-1119.17085988,0.000219,2]
[388876471,1759456235574,-1000.0,0.000219,7]
[388876472,1759456235583,-195360.89045731,0.000219,2]
[388876473,1759456236535,-4107.55056209,0.000219,2]
[388876474,1759456236546,-5603.99560223,0.000219,2]
[388876475,1759456236558,-889.96405998,0.000219,2]
[388876476,1759456236676,-35469.57813798,0.000219,2]
[388876477,1759456236688,-556.8968615,0.000219,2]
[388876478,1759456236737,-400.0,0.000219,2]
[388876479,1759456236855,-32412.80762897,0.000219,2]
[388876496,1759456242262,-440.21844075,0.00019588,2]
[388876497,1759456242272,-500.0,0.00019588,2]
[388876498,1759456242282,-500.0,0.00019588,2]
[388876499,1759456242292,-500.0,0.00019588,2]
[388876500,1759456242302,-500.0,0.00019588,2]
[388876501,1759456242312,-500.0,0.00019588,2]
[388876502,1759456242326,-500.0,0.00019588,2]
[388876503,1759456242336,-500.0,0.00019588,2]
[388876504,1759456242345,-500.0,0.00019588,2]
[388876505,1759456242355,-500.0,0.00019588,2]
[388876506,1759456242365,-500.0,0.00019588,2]
[388876507,1759456242374,-500.0,0.00019588,2]
[388876508,1759456242384,-333.04650331,0.00019588,2]
[388876509,1759456242393,-500.0,0.00019588,2]
[388876510,1759456242403,-900.0,0.00019974,2]
[388876511,1759456242412,-1409.48372683,0.00021698,2]
[388876512,1759456242422,-306.7942763,0.000217,2]
[388876513,1759456242432,-35329.40684825,0.000219,2]
[388876514,1759456242441,-15703.943937,0.000219,2]
[388876515,1759456242454,-11071.84067338,0.000219,2]
[388876522,1759456244487,-298.66206504,0.00019489,2]
[388876528,1759456247706,-29.77972439,0.00019489,2]
[388876529,1759456247716,-159.87536364,0.00019588,2]
[388876530,1759456247725,-95.41051162,0.00019974,2]
[388876531,1759456247843,-104.58948838,0.00019974,2]
[388876532,1759456247853,-210.68545633,0.00021018,2]
[388876533,1759456247862,-172.20507729,0.00021575,2]
[388876534,1759456247871,-172.20507729,0.00021612,2]
[388876535,1759456247880,-172.20507729,0.00021627,2]
[388876536,1759456247890,-172.20507729,0.0002163,2]
[388876537,1759456247899,-2641.01565522,0.000219,2]
[388876538,1759456247910,-267.15,0.000219,2]
[388876539,1759456247921,-518.52466005,0.000219,2]
[388876540,1759456248326,-172.20507729,0.00021675,2]
[388876541,1759456248336,-116.1762246,0.000219,2]
[388876542,1759456248429,-1848.0,0.000219,2]
[388876543,1759456250287,-329.02102473,0.000219,2]
[388876544,1759456250299,-800.0,0.000219,2]
[388876545,1759456250353,-2401.8,0.000219,2]
[388876546,1759456250364,-2691.0862132,0.000219,2]
[388876547,1759456250375,-330.6006,0.000219,2]
[388876548,1759456250387,-679.24271567,0.000219,2]
[388876552,1759456389897,431.0,0.00027397,120]
[388876553,1759456390123,431.0,0.00027671,120]
[388876554,1759456390329,431.0,0.00027945,120]
[388876555,1759456390501,431.0,0.00028219,120]
[388876556,1759456390736,431.0,0.00028493,120]
[388876557,1759456391553,431.0,0.00028767,120]
[388876558,1759456391739,431.0,0.00029041,120]
[388876559,1759456392039,431.0,0.00029315,120]
[388876560,1759456392273,431.0,0.00029589,120]
[388876561,1759456392418,431.0,0.00029863,120]
[388876562,1759456392583,431.0,0.00030137,120]
[388876575,1759456701156,417.80800416,0.00030136,120]
[388876578,1759456734561,1149.9,0.00030137,120]
[388876581,1759456791535,167.0,0.00030137,120]
[388876582,1759456826595,300.72345226,0.0003,120]
[388876588,1759456884920,-5004.15730422,0.00017304,2]
[388876589,1759456884945,-1200.0,0.00019085,2]
[388876590,1759456884969,-301.1,0.00019085,2]
[388876591,1759456884991,-254.18631368,0.00019086,2]
[388876592,1759456885014,-1855.5563821,0.00019086,2]
[388876603,1759457140237,-1200.0,0.00021945,30]
[388876633,1759457317972,494.0,0.00030137,120]
[388876635,1759457330014,585.4590156,0.0003,120]
[388876777,1759457433396,-250.0,0.00017,2]
[388876778,1759457433425,-945.6178848,0.0001785,2]
[388876779,1759457433436,-250.0,0.000187,2]
[388876780,1759457433446,-2000.0,0.000187,2]
[388876781,1759457433456,-477.0,0.00019084,2]
[388876782,1759457433465,-500.0,0.00019084,2]
[388876783,1759457433476,-195.0,0.00019084,2]
[388876784,1759457433486,-301.55,0.00019084,2]
[388876785,1759457433496,-449.30044261,0.00019084,2]
[388876786,1759457433506,-300.78,0.00019084,2]
[388876787,1759457433516,-301.42,0.00019084,2]
[388876788,1759457433526,-303.09,0.00019084,2]
[388876789,1759457433535,-301.1,0.00019085,2]
[388876790,1759457433544,-301.56,0.00019085,2]
[388876791,1759457433554,-305.58,0.00019085,2]
[388876792,1759457433564,-430.43,0.00019085,2]
[388876793,1759457433574,-434.45,0.00019085,2]
[388876794,1759457433584,-432.65,0.00019085,2]
[388876795,1759457433593,-267.68318582,0.00019085,2]
[388876796,1759457433605,-38.27681418,0.00019085,2]
[388876797,1759457433614,-301.82,0.00019085,2]
[388876798,1759457433624,-301.42,0.00019086,2]
[388876799,1759457433634,-151.65,0.00019086,2]
[388876800,1759457433643,-150.4,0.00019086,2]
[388876801,1759457433652,-152.69,0.00019086,2]
[388876802,1759457433661,-150.25,0.00019086,2]
[388876803,1759457433671,-304.23,0.00019086,2]
[388876804,1759457433680,-150.65,0.00019086,2]
[388876805,1759457433690,-303.48,0.00019086,2]
[388876806,1759457433700,-300.42,0.00019086,2]
[388876807,1759457433710,-152.91,0.00019086,2]
[388876808,1759457433719,-305.98,0.00019086,2]
[388876809,1759457433729,-151.33,0.00019086,2]
[388876810,1759457433740,-305.4,0.00019086,2]
[388876811,1759457433750,-304.89,0.00019086,2]
[388876812,1759457433759,-301.4,0.00019086,2]
[388876813,1759457433769,-301.55,0.00019086,2]
[388876814,1759457433778,-303.87,0.00019086,2]
[388876815,1759457433787,-2202.4,0.00019086,2]
[388876816,1759457433796,-151.73,0.00019087,2]
[388876817,1759457433805,-302.46,0.00019087,2]
[388876818,1759457433814,-150.92,0.00019087,2]
[388876819,1759457433824,-152.61,0.00019087,2]
[388876820,1759457433833,-152.52,0.00019087,2]
[388876821,1759457433842,-301.58,0.00019087,2]
[388876822,1759457433852,-152.58,0.00019087,2]
[388876823,1759457433862,-304.99,0.00019087,2]
[388876824,1759457433871,-301.4,0.00019087,2]
[388876825,1759457433880,-137.53294201,0.00019111,2]
[388876826,1759457433977,-233.01989737,0.00019111,2]
[388876827,1759457433988,-301.54,0.00019122,2]
[388876828,1759457433997,-161.08,0.000193,2]
[388876829,1759457434007,-303.58,0.0001932,2]
[388876830,1759457434017,-188.95,0.00019383,2]
[388876831,1759457434027,-498.49,0.00019415,2]
[388876832,1759457434036,-500.0,0.00019507,2]
[388876833,1759457434047,-1000.0,0.00019982,2]
[388876834,1759457434057,-151.0,0.00019992,2]
[388876835,1759457434067,-151.0,0.00019992,2]
[388876836,1759457434076,-151.0,0.00019992,2]
[388876837,1759457434085,-151.0,0.00019992,2]
[388876839,1759457434095,-151.0,0.00019992,2]
[388876841,1759457434105,-151.0,0.00019992,2]
[388876843,1759457434115,-151.0,0.00019992,2]
[388876845,1759457434124,-151.0,0.00019992,2]
[388876847,1759457434133,-151.0,0.00019992,2]
[388876849,1759457434141,-151.0,0.00019992,2]
[388876851,1759457434151,-220.5892431,0.00019992,2]
[388876853,1759457434160,-151.0,0.00019992,2]
[388876855,1759457434169,-151.0,0.00019992,2]
[388876856,1759457434178,-222.2953304,0.00019992,2]
[388876858,1759457434187,-500.0,0.00019992,2]
[388876860,1759457434196,-151.0,0.00019992,2]
[388876862,1759457434206,-500.0,0.00019992,2]
[388876864,1759457434216,-151.0,0.00019992,2]
[388876866,1759457434225,-269.2271067,0.00019992,2]
[388876869,1759457434236,-151.0,0.00019992,2]
[388876871,1759457434246,-151.0,0.00019992,2]
[388876872,1759457434255,-151.0,0.00019992,2]
[388876874,1759457434265,-151.0,0.00019992,2]
[388876876,1759457434274,-151.0,0.00019992,2]
[388876878,1759457434283,-151.0,0.00019992,2]
[388876881,1759457434292,-151.0,0.00019992,2]
[388876882,1759457434302,-151.0,0.00019992,2]
[388876885,1759457434312,-151.0,0.00019992,2]
[388876886,1759457434322,-160.91324581,0.00019992,2]
[388876888,1759457434331,-267.83,0.00019992,2]
[388876890,1759457434340,-10051.0,0.0002,2]
[388876892,1759457434349,-150.0,0.0002,2]
[388876894,1759457434358,-150.0,0.00020004,2]
[388876896,1759457434367,-150.0,0.00020004,2]
[388876898,1759457434377,-3408.406,0.00020004,2]
[388876900,1759457434387,-2045.0,0.00020004,2]
[388876902,1759457434396,-790.335,0.00020004,2]
[388876903,1759457434406,-150.0,0.00020097,2]
[388876904,1759457434415,-206.4,0.00020194,2]
[388876905,1759457434429,-1585.0,0.00020212,2]
[388876907,1759457434439,-570.0,0.00020212,2]
[388876909,1759457434448,-1307.0,0.00020212,2]
[388876911,1759457434458,-4249.0,0.00020212,2]
[388876913,1759457434467,-1181.0,0.00020212,2]
[388876915,1759457434476,-900.0,0.00020212,2]
[388876917,1759457434487,-6236.0,0.00020212,2]
[388876919,1759457434496,-4115.0,0.00020212,2]
[388876921,1759457434505,-199.80893084,0.00020221,2]
[388876923,1759457434514,-267.83,0.00020266,2]
[388876925,1759457434524,-1254.91,0.00020297,2]
[388876927,1759457434533,-242.19264344,0.00020346,2]
[388876929,1759457434543,-498.49,0.00020385,2]
[388876931,1759457434553,-862.91319274,0.00020409,2]
[388876933,1759457434562,-151.39913231,0.00020432,2]
[388876935,1759457434571,-199.34545013,0.00020432,2]
[388876937,1759457434580,-322.6107,0.00020432,2]
[388876939,1759457434589,-646.65982734,0.00020432,2]
[388876941,1759457434598,-179.85603421,0.00020432,2]
[388876943,1759457434608,-281.80309419,0.00020432,2]
[388876945,1759457434618,-200.0,0.00020432,2]
[388876947,1759457434627,-167.79521386,0.00020432,2]
[388876949,1759457434636,-409.86790394,0.00020432,2]
[388876951,1759457434646,-8565.75555911,0.00020432,2]
[388876953,1759457434656,-500.0,0.00020432,2]
[388876955,1759457434665,-500.0,0.00020432,2]
[388876958,1759457434676,-500.0,0.00020432,2]
[388876960,1759457434686,-500.0,0.00020432,2]
[388876962,1759457434695,-500.0,0.00020432,2]
[388876963,1759457434704,-500.0,0.00020432,2]
[388876966,1759457434715,-153.26049602,0.00020432,2]
[388876968,1759457434724,-500.0,0.00020432,2]
[388876970,1759457434734,-500.0,0.00020432,2]
[388876971,1759457434744,-500.0,0.00020432,2]
[388876973,1759457434753,-500.0,0.00020432,2]
[388876975,1759457434762,-500.0,0.00020432,2]
[388876977,1759457434771,-500.0,0.00020432,2]
[388876980,1759457434780,-500.0,0.00020432,2]
[388876982,1759457434791,-500.0,0.00020432,2]
[388876984,1759457434801,-500.0,0.00020432,2]
[388876986,1759457434811,-623.01711571,0.00020432,2]
[388876988,1759457434821,-500.0,0.00020432,2]
[388876990,1759457434830,-500.0,0.00020432,2]
[388876992,1759457434840,-500.0,0.00020432,2]
[388876994,1759457434850,-375.35558429,0.00020432,2]
[388876996,1759457434860,-257.91778498,0.00020432,2]
[388876998,1759457434869,-284.57635604,0.0002047,2]
[388877000,1759457434879,-8882.6885148,0.00020487,2]
[388877002,1759457434888,-166.18,0.00020488,2]
[388877004,1759457434898,-267.83,0.0002054,2]
[388877006,1759457434907,-9211.34798985,0.00020542,2]
[388877008,1759457434918,-326.96006865,0.00020594,2]
[388877010,1759457434928,-9552.16786547,0.00020597,2]
[388877012,1759457434937,-9905.5980765,0.00020652,2]
[388877014,1759457434946,-500.0,0.00020706,2]
[388877016,1759457434955,-500.0,0.00020706,2]
[388877018,1759457434964,-500.0,0.00020706,2]
[388877020,1759457434973,-500.0,0.00020706,2]
[388877022,1759457434983,-500.0,0.00020706,2]
[388877024,1759457434996,-500.0,0.00020706,2]
[388877026,1759457435006,-500.0,0.00020706,2]
[388877028,1759457435015,-500.0,0.00020706,2]
[388877030,1759457435025,-538.12991504,0.00020706,2]
[388877031,1759457435034,-500.0,0.00020706,2]
[388877034,1759457435044,-500.0,0.00020706,2]
[388877036,1759457435054,-500.0,0.00020706,2]
[388877038,1759457435064,-500.0,0.00020706,2]
[388877040,1759457435075,-500.0,0.00020706,2]
[388877042,1759457435084,-500.0,0.00020706,2]
[388877044,1759457435094,-500.0,0.00020706,2]
[388877046,1759457435103,-500.0,0.00020706,2]
[388877048,1759457435113,-10272.10520533,0.00020707,2]
[388877050,1759457435124,-369.34378125,0.00020718,2]
[388877052,1759457435134,-10652.17309792,0.00020762,2]
[388877054,1759457435144,-862.91319274,0.00020764,2]
[388877056,1759457435154,-267.83,0.00020814,2]
[388877058,1759457435163,-11046.30350255,0.00020817,2]
[388877060,1759457435172,-411.72749385,0.00020842,2]
[388877062,1759457435182,-11455.01673214,0.00020872,2]
[388877064,1759457435191,-11878.85235123,0.00020927,2]
[388877066,1759457435201,-454.11120645,0.00020966,2]
[388877068,1759457435213,-12318.36988823,0.00020982,2]
[388877070,1759457435223,-1919.5840559,0.00020992,2]
[388877073,1759457435234,-250.0,0.00020992,2]
[388877075,1759457435244,-302.66372629,0.00020992,2]
[388877077,1759457435260,-500.0,0.00020992,2]
[388877079,1759457435271,-195.0,0.00020992,2]
[388877081,1759457435285,-2127.44902706,0.00020992,2]
[388877083,1759457435294,-512.6646585,0.00020993,2]
[388877084,1759457435303,-150.15653348,0.00020993,2]
[388877087,1759457435314,-5436.73222795,0.00021037,2]
[388877088,1759457435323,-862.91319274,0.00021081,2]
[388877090,1759457435333,-267.83460217,0.00021088,2]
[388877092,1759457435343,-496.49491906,0.0002109,2]
[388877095,1759457435353,-862.91319274,0.00021172,2]
[388877097,1759457435363,-150.0,0.0002118,2]
[388877099,1759457435372,-538.87863166,0.00021214,2]
[388877101,1759457435382,-353.79,0.00021244,2]
[388877103,1759457435391,-1000.0,0.00021322,2]
[388877105,1759457435400,-581.26234426,0.00021338,2]
[388877107,1759457435411,-498.49,0.00021356,2]
[388877109,1759457435420,-2000.0,0.000214,2]
[388877110,1759457435434,-1006.0,0.000214,2]
[388877112,1759457435443,-623.64605686,0.00021463,2]
[388877114,1759457435452,-25714.319,0.00021515,2]
[388877116,1759457435463,-1000.0,0.00021515,2]
[388877119,1759457435472,-32488.95878897,0.00021528,2]
[388877120,1759457435483,-249.83979337,0.00021555,2]
[388877122,1759457435493,-249.83979337,0.00021559,2]
[388877124,1759457435503,-862.91319277,0.00021571,2]
[388877127,1759457435513,-32488.95878897,0.00021574,2]
[388877128,1759457435523,-249.83979337,0.00021587,2]
[388877130,1759457435532,-666.02976946,0.00021587,2]
[388877133,1759457435542,-312.6643,0.000216,2]
[388877134,1759457435551,-1000.0,0.000216,2]
[388877136,1759457435561,-151.0,0.00021608,2]
[388877139,1759457435570,-5826.42566975,0.00021611,2]
[388877140,1759457435579,-476.47201615,0.00021611,2]
[388877143,1759457435589,-249.83979337,0.00021621,2]
[388877144,1759457435598,-249.83979337,0.00021623,2]
[388877147,1759457435608,-383.0,0.00021651,2]
[388877149,1759457435618,-32488.95878897,0.00021656,2]
[388877151,1759457435627,-383.0,0.00021658,2]
[388877153,1759457435636,-32488.95878897,0.00021665,2]
[388877155,1759457435646,-383.0,0.00021682,2]
[388877156,1759457435656,-32488.95878897,0.00021698,2]
[388877158,1759457435666,-189.883,0.00021698,2]
[388877160,1759457435675,-134042.4086,0.000217,2]
[388877162,1759457435685,-708.41348207,0.00021711,2]
[388877165,1759457435694,-1260.0,0.00021724,2]
[388877166,1759457435703,-200.0,0.00021725,2]
[388877168,1759457435713,-161.731604,0.0002174,2]
[388877170,1759457435722,-5000.0,0.00021745,2]
[388877172,1759457435732,-1231.0,0.00021791,2]
[388877175,1759457435744,-1231.0,0.00021791,2]
[388877177,1759457435753,-1231.0,0.00021791,2]
[388877179,1759457435763,-1231.0,0.00021791,2]
[388877181,1759457435772,-1231.0,0.00021791,2]
[388877182,1759457435782,-151.0,0.00021791,2]
[388877185,1759457435791,-1231.0,0.00021791,2]
[388877186,1759457435801,-151.0,0.00021791,2]
[388877188,1759457435811,-1231.0,0.00021791,2]
[388877190,1759457435821,-151.0,0.00021791,2]
[388877193,1759457435831,-151.0,0.00021791,2]
[388877195,1759457435843,-1231.0,0.00021791,2]
[388877197,1759457435854,-1231.0,0.00021791,2]
[388877198,1759457435864,-151.0,0.00021791,2]
[388877201,1759457435874,-1231.0,0.00021791,2]
[388877202,1759457435884,-151.0,0.00021791,2]
[388877204,1759457435895,-1231.0,0.00021791,2]
[388877207,1759457435907,-151.0,0.00021791,2]
[388877208,1759457435916,-1231.0,0.00021791,2]
[388877211,1759457435926,-151.0,0.00021791,2]
[388877213,1759457435936,-1231.0,0.00021791,2]
[388877215,1759457435946,-151.0,0.00021791,2]
[388877216,1759457435956,-1231.0,0.00021791,2]
[388877218,1759457435965,-151.0,0.00021791,2]
[388877221,1759457435975,-1231.0,0.00021791,2]
[388877223,1759457435986,-151.0,0.00021791,2]
[388877225,1759457435996,-1231.0,0.00021791,2]
[388877227,1759457436008,-151.0,0.00021791,2]
[388877229,1759457436017,-1231.0,0.00021791,2]
[388877231,1759457436027,-151.0,0.00021791,2]
[388877233,1759457436036,-1000.86878182,0.00021791,2]
[388877235,1759457436046,-151.0,0.00021791,2]
[388877237,1759457436055,-151.0,0.00021791,2]
[388877239,1759457436064,-151.0,0.00021791,2]
[388877241,1759457436074,-151.0,0.00021791,2]
[388877243,1759457436084,-151.0,0.00021791,2]
[388877245,1759457436093,-151.0,0.00021791,2]
[388877247,1759457436102,-151.0,0.00021791,2]
[388877249,1759457436111,-151.0,0.00021791,2]
[388877251,1759457436121,-151.0,0.00021791,2]
[388877253,1759457436130,-151.0,0.00021791,2]
[388877255,1759457436139,-151.0,0.00021791,2]
[388877257,1759457436148,-151.0,0.00021791,2]
[388877259,1759457436158,-161.6158856,0.00021791,2]
[388877261,1759457436167,-151.0,0.00021791,2]
[388877263,1759457436176,-151.0,0.00021791,2]
[388877265,1759457436186,-151.0,0.00021791,2]
[388877267,1759457436195,-151.0,0.00021791,2]
[388877269,1759457436205,-151.0,0.00021791,2]
[388877271,1759457436215,-151.0,0.00021791,2]
[388877273,1759457436225,-151.0,0.00021791,2]
[388877275,1759457436236,-194.67966624,0.00021791,2]
[388877277,1759457436246,-968.02243968,0.000218,2]
[388877279,1759457436255,-161.40406457,0.000218,2]
[388877281,1759457436265,-413.6811245,0.000218,2]
[388877283,1759457436274,-402.12180476,0.000218,2]
[388877285,1759457436284,-1146.44,0.000218,7]
[388877287,1759457436293,-334.5472959,0.00021801,2]
[388877289,1759457436303,-2025.51,0.00021808,2]
[388877291,1759457436312,-750.79719467,0.00021835,2]
[388877293,1759457436322,-245.94165813,0.00021843,2]
[388877295,1759457436332,-214.12277407,0.00021843,2]
[388877297,1759457436341,-500.0,0.00021843,2]
[388877299,1759457436350,-477.40735681,0.00021843,2]
[388877301,1759457436360,-180291.9775789,0.00021845,2]
[388877304,1759457436370,-42903.3029275,0.00021845,2]
[388877306,1759457436379,-4877.1695259,0.00021845,2]
[388877308,1759457436388,-401.75627315,0.0002187,2]
[388877310,1759457436399,-200.0,0.00021873,2]
[388877312,1759457436408,-150.93,0.0002189,2]
[388877314,1759457436418,-150.93,0.0002189,2]
[388877316,1759457436431,-150.93,0.0002189,2]
[388877318,1759457436441,-150.93,0.0002189,2]
[388877320,1759457436450,-150.93,0.0002189,2]
[388877322,1759457436461,-177.93812033,0.0002189,2]
[388877324,1759457436471,-300.0,0.00021899,2]
[388877326,1759457436480,-669.23748468,0.00021899,2]
[388877328,1759457436491,-151.61879475,0.00021899,2]
[388877330,1759457436501,-151.0,0.00021899,2]
[388877332,1759457436511,-222.436876,0.00021899,2]
[388877334,1759457436525,-151.0,0.00021899,2]
[388877336,1759457436540,-186.82569,0.00021899,2]
[388877338,1759457436549,-151.0,0.00021899,2]
[388877340,1759457436557,-186.82569,0.00021899,2]
[388877342,1759457436566,-186.82569,0.00021899,2]
[388877344,1759457436575,-186.82569,0.00021899,2]
[388877345,1759457436584,-151.0,0.00021899,2]
[388877346,1759457436593,-151.0,0.00021899,2]
[388877347,1759457436602,-151.0,0.00021899,2]
[388877348,1759457436611,-151.0,0.00021899,2]
[388877349,1759457436620,-151.0,0.00021899,2]
[388877350,1759457436629,-151.0,0.00021899,2]
[388877351,1759457436638,-230.366618,0.00021899,2]
[388877352,1759457436647,-192.542761,0.00021899,2]
[388877353,1759457436656,-151.0,0.00021899,2]
[388877354,1759457436665,-151.0,0.00021899,2]
[388877355,1759457436675,-151.0,0.00021899,2]
[388877356,1759457436683,-151.0,0.00021899,2]
[388877357,1759457436693,-151.0,0.00021899,2]
[388877358,1759457436702,-151.0,0.00021899,2]
[388877359,1759457436711,-152.514288,0.00021899,2]
[388877360,1759457436720,-151.657913,0.00021899,2]
[388877361,1759457436729,-235.828087,0.00021899,2]
[388877362,1759457436739,-151.0,0.00021899,2]
[388877363,1759457436749,-151.0,0.00021899,2]
[388877365,1759457436758,-151.0,0.00021899,2]
[388877367,1759457436767,-151.0,0.00021899,2]
[388877369,1759457436777,-151.0,0.00021899,2]
[388877371,1759457436787,-151.0,0.00021899,2]
[388877373,1759457436796,-151.0,0.00021899,2]
[388877375,1759457436805,-151.0,0.00021899,2]
[388877377,1759457436814,-151.0,0.00021899,2]
[388877379,1759457436823,-151.0,0.00021899,2]
[388877381,1759457436832,-151.0,0.00021899,2]
[388877383,1759457436841,-151.0,0.00021899,2]
[388877385,1759457436851,-151.0,0.00021899,2]
[388877387,1759457436860,-151.0,0.00021899,2]
[388877389,1759457436869,-154.263743,0.00021899,2]
[388877391,1759457436878,-151.0,0.00021899,2]
[388877393,1759457436887,-151.0,0.00021899,2]
[388877395,1759457436897,-151.0,0.00021899,2]
[388877397,1759457436906,-158.728608,0.00021899,2]
[388877399,1759457436915,-151.0,0.00021899,2]
[388877401,1759457436924,-254.224627,0.00021899,2]
[388877403,1759457436934,-254.224627,0.00021899,2]
[388877405,1759457436942,-254.224627,0.00021899,2]
[388877407,1759457436952,-153.714533,0.00021899,2]
[388877409,1759457436961,-254.224627,0.00021899,2]
[388877411,1759457436971,-151.0,0.00021899,2]
[388877413,1759457436980,-168.511609,0.00021899,2]
[388877415,1759457436989,-152.685563,0.00021899,2]
[388877417,1759457436998,-153.058215,0.00021899,2]
[388877419,1759457437007,-393.79422,0.00021899,2]
[388877421,1759457437016,-151.0,0.00021899,2]
[388877423,1759457437026,-393.79422,0.00021899,2]
[388877425,1759457437035,-151.0,0.00021899,2]
[388877427,1759457437044,-151.0,0.00021899,2]
[388877429,1759457437055,-393.79422,0.00021899,2]
[388877431,1759457437064,-151.0,0.00021899,2]
[388877433,1759457437076,-151.0,0.00021899,2]
[388877435,1759457437086,-393.79422,0.00021899,2]
[388877437,1759457437095,-190.963927,0.00021899,2]
[388877439,1759457437104,-151.0,0.00021899,2]
[388877441,1759457437114,-151.0,0.00021899,2]
[388877444,1759457437123,-152.293997,0.00021899,2]
[388877445,1759457437133,-151.0,0.00021899,2]
[388877447,1759457437142,-151.0,0.00021899,2]
[388877449,1759457437151,-151.0,0.00021899,2]
[388877452,1759457437161,-459.317636,0.00021899,2]
[388877454,1759457437171,-459.317636,0.00021899,2]
[388877456,1759457437180,-459.317636,0.00021899,2]
[388877457,1759457437194,-459.317636,0.00021899,2]
[388877459,1759457437204,-297.737888,0.00021899,2]
[388877460,1759457437213,-297.737888,0.00021899,2]
[388877461,1759457437221,-297.737888,0.00021899,2]
[388877462,1759457437230,-297.737888,0.00021899,2]
[388877463,1759457437240,-151.0,0.00021899,2]
[388877464,1759457437249,-151.0,0.00021899,2]
[388877465,1759457437257,-151.0,0.00021899,2]
[388877466,1759457437266,-151.0,0.00021899,2]
[388877467,1759457437276,-151.0,0.00021899,2]
[388877468,1759457437284,-151.0,0.00021899,2]
[388877469,1759457437293,-151.0,0.00021899,2]
[388877470,1759457437303,-221.205368,0.00021899,2]
[388877471,1759457437312,-221.205368,0.00021899,2]
[388877472,1759457437320,-221.205368,0.00021899,2]
[388877473,1759457437329,-221.205368,0.00021899,2]
[388877474,1759457437338,-154.533365,0.00021899,2]